bitfinex-derivatives/quotes_BTCF0:USTF0_20250720
["timestamp","ask_amount","ask_price","bid_price","bid_amount"]
[1753032756413,0.87854998,118490.0,118480.0,1.38550022]
[1753032756914,0.87854998,118490.0,118480.0,1.21677042]
[1753032758511,1.23934998,118490.0,118480.0,1.21677042]
[1753032759509,1.23934998,118490.0,118480.0,0.62593042]
[1753032759713,1.23934998,118490.0,118480.0,0.50559042]
[1753032760016,1.23934998,118490.0,118480.0,1.09603042]
[1753032760916,1.23934998,118490.0,118480.0,0.50559042]
[1753032761116,1.23934998,118490.0,118480.0,1.09603042]
[1753032764415,1.23934998,118490.0,118480.0,1.38510022]
[1753032764721,1.22561998,118490.0,118480.0,1.38510022]
[1753032765025,0.6912056,118490.0,118480.0,1.5467646]
[1753032765218,0.85286998,118490.0,118480.0,1.5467646]
[1753032765615,0.6912056,118490.0,118480.0,1.56951979]
[1753032765820,0.85286998,118490.0,118480.0,1.56951979]
[1753032766520,0.85286998,118490.0,118480.0,1.93031979]
[1753032770218,0.85286998,118490.0,118480.0,1.56951979]
[1753032771126,0.6912056,118490.0,118480.0,1.56951979]
[1753032771325,0.85286998,118490.0,118480.0,1.56951979]
[1753032771824,0.85286998,118490.0,118480.0,1.93031979]
[1753032772315,0.85286998,118490.0,118480.0,1.56951979]
[1753032773324,0.85286998,118490.0,118480.0,1.93031979]
[1753032773514,0.244,118490.0,118480.0,2.00198417]
[1753032773719,0.4127155,118490.0,118480.0,2.37198417]
[1753032774319,0.4127155,118490.0,118480.0,2.00198417]
[1753032774528,0.4127155,118490.0,118480.0,2.31198417]
[1753032774722,0.5338155,118490.0,118480.0,2.31198417]
[1753032774923,0.5338155,118490.0,118480.0,2.00198417]
[1753032775220,0.5338155,118490.0,118480.0,1.89414991]
[1753032775622,0.5833755,118490.0,118480.0,1.89414991]
[1753032777020,0.5338155,118490.0,118480.0,1.89414991]
[1753032777421,0.4127155,118490.0,118480.0,1.89414991]
[1753032778028,0.4127155,118490.0,118480.0,2.24414991]
[1753032778427,0.244,118490.0,118480.0,2.24414991]
[1753032780229,0.18728145,118500.0,118480.0,2.29091461]
[1753032780423,0.01857965,118500.0,118490.0,0.94181]
[1753032780629,0.27857965,118500.0,118490.0,1.32181]
[1753032780930,0.27857965,118500.0,118490.0,1.62261171]
[1753032780931,0.1845701,118500.0,118490.0,1.62261171]
[1753032781730,0.1865701,118500.0,118490.0,1.62261171]
[1753032782128,0.3552714,118500.0,118490.0,1.62261171]
[1753032782518,0.3552714,118500.0,118490.0,1.62361171]
[1753032782719,0.3572714,118500.0,118490.0,1.62361171]
[1753032783230,0.3562714,118500.0,118490.0,1.62461171]
[1753032783730,0.1875701,118500.0,118490.0,1.62461171]
[1753032785430,0.1855701,118500.0,118490.0,1.83488071]
[1753032788935,0.1855701,118500.0,118490.0,1.865182]
[1753032789729,0.1855701,118500.0,118490.0,1.88790346]
[1753032789933,0.3519701,118500.0,118490.0,1.865182]
[1753032790530,0.3519701,118500.0,118490.0,1.91063394]
[1753032793129,0.1855701,118500.0,118490.0,1.91063394]
[1753032794337,0.1855701,118500.0,118490.0,1.865182]
[1753032794646,0.3519701,118500.0,118490.0,1.865182]
[1753032796040,0.3519701,118500.0,118490.0,1.6496875]
[1753032796233,0.3519701,118500.0,118490.0,1.865182]
[1753032798539,0.3519701,118500.0,118490.0,1.85758464]
[1753032799343,0.33346965,118500.0,118490.0,1.85758464]
[1753032802042,0.35694965,118500.0,118490.0,1.85758464]
[1753032806244,0.35694965,118500.0,118490.0,1.88788593]
[1753032806748,0.33346965,118500.0,118490.0,1.88788593]
[1753032808348,0.35632965,118500.0,118490.0,1.88788593]
[1753032808648,0.35632965,118500.0,118490.0,1.83488071]
[1753032809149,0.35632965,118500.0,118490.0,1.94248489]
[1753032811060,0.33346965,118500.0,118490.0,2.00308748]
[1753032813164,0.16706965,118500.0,118490.0,2.10403423]
[1753032813557,0.16706965,118500.0,118490.0,1.61938621]
[1753032813858,0.16706965,118500.0,118490.0,1.94248489]
[1753032814463,0.33841965,118500.0,118490.0,1.94248489]
[1753032815763,0.36127965,118500.0,118490.0,1.94248489]
[1753032817963,0.36127965,118500.0,118490.0,2.00308748]
[1753032819068,0.36127965,118500.0,118490.0,2.53192489]
[1753032821062,0.72674674,118520.0,118500.0,0.168702]
[1753032821063,0.17135,118510.0,118500.0,0.168702]
[1753032821265,0.26,118510.0,118500.0,2.07485859]
[1753032821465,0.26,118510.0,118500.0,1.59021057]
[1753032821665,0.26,118510.0,118500.0,1.58821057]
[1753032821869,0.26,118510.0,118500.0,2.43301852]
[1753032821870,0.2374838,118510.0,118500.0,2.43301852]
[1753032822169,0.0633875,118510.0,118500.0,2.43301852]
[1753032822372,0.17135,118520.0,118510.0,0.1676877]
[1753032822569,0.41135,118520.0,118510.0,1.81654288]
[1753032823964,0.41235,118520.0,118510.0,1.81854288]
[1753032825169,0.41235,118520.0,118510.0,1.92002618]
[1753032825367,0.41235,118520.0,118510.0,1.93507227]
[1753032825768,0.241,118520.0,118510.0,2.15038525]
[1753032829168,0.41235,118520.0,118510.0,2.15038525]
[1753032829574,0.41235,118520.0,118510.0,1.93507227]
[1753032830074,0.43521,118520.0,118510.0,1.93707227]
[1753032830575,0.43521,118520.0,118510.0,3.10399227]
[1753032830874,0.43521,118520.0,118510.0,3.39559227]
[1753032832373,0.43521,118520.0,118510.0,3.33498968]
[1753032832674,0.43521,118520.0,118510.0,3.39559227]
[1753032833065,0.43521,118520.0,118510.0,3.33498968]
[1753032835771,0.43521,118520.0,118510.0,3.1196767]
[1753032835973,0.55958,118520.0,118510.0,3.38045535]
[1753032836476,0.55958,118520.0,118510.0,3.38017535]
[1753032836777,0.55958,118520.0,118510.0,1.62413535]
[1753032837077,0.55958,118520.0,118510.0,3.38013535]
[1753032837574,0.55958,118520.0,118510.0,3.16482237]
[1753032837779,0.55958,118520.0,118510.0,3.38013535]
[1753032838478,0.55958,118520.0,118510.0,3.36498086]
[1753032839781,0.55958,118520.0,118510.0,2.77586086]
[1753032839979,0.55958,118520.0,118510.0,3.36494086]
[1753032840180,0.55958,118520.0,118510.0,3.14962788]
[1753032840375,0.55958,118520.0,118510.0,3.3876763]
[1753032840887,0.55958,118520.0,118510.0,3.36494086]
[1753032843183,0.55958,118520.0,118510.0,3.38768142]
[1753032843383,0.55958,118520.0,118510.0,3.36494086]
[1753032845179,0.55958,118520.0,118510.0,2.77586086]
[1753032845385,0.7282544,118520.0,118510.0,3.36490086]
[1753032846480,0.7282544,118520.0,118510.0,2.19802086]
[1753032847481,0.55958,118520.0,118510.0,2.19802086]
[1753032848584,0.55958,118520.0,118510.0,2.22831227]
[1753032849282,0.7282544,118520.0,118510.0,2.22831227]
[1753032851684,0.7282544,118520.0,118510.0,1.86751227]
[1753032851883,0.7282544,118520.0,118510.0,2.58911227]
[1753032853192,0.7282544,118520.0,118510.0,2.69680553]
[1753032856896,0.7282544,118520.0,118510.0,2.10776553]
[1753032857096,0.7282544,118520.0,118510.0,2.69668553]
[1753032859999,0.7282544,118520.0,118510.0,2.69664553]
[1753032861896,0.7282544,118520.0,118510.0,2.37363929]
[1753032862101,0.7282544,118520.0,118510.0,2.69664553]
[1753032863600,0.7282544,118520.0,118510.0,2.10776553]
[1753032863801,0.7282544,118520.0,118510.0,2.69660553]
[1753032865703,0.7282544,118520.0,118510.0,2.40500553]
[1753032866404,0.7282544,118520.0,118510.0,1.81616553]
[1753032866604,0.7282544,118520.0,118510.0,2.40496553]
[1753032869002,0.7282544,118520.0,118510.0,1.81616553]
[1753032869295,0.7282544,118520.0,118510.0,2.40492553]
[1753032872404,0.7282544,118520.0,118510.0,2.04412553]
[1753032872706,0.7282544,118520.0,118510.0,2.40492553]
[1753032874106,0.7282544,118520.0,118510.0,2.08191929]
[1753032874304,0.7282544,118520.0,118510.0,2.24334241]
[1753032874502,0.7282544,118520.0,118510.0,2.40484553]
[1753032875410,0.7282544,118520.0,118510.0,2.69644553]
[1753032885321,0.7282544,118520.0,118510.0,2.10776553]
[1753032885521,0.88975752,118520.0,118510.0,1.3005976]
[1753032885826,0.88975752,118520.0,118510.0,1.29341212]
[1753032886022,0.7282544,118520.0,118510.0,1.131909]
[1753032886320,1.41206064,118520.0,118510.0,0.98747703]
[1753032886520,1.41206064,118520.0,118510.0,0.39883703]
[1753032886719,1.41206064,118520.0,118510.0,0.98747703]
[1753032886925,1.42116804,118520.0,118510.0,1.01785738]
[1753032887327,1.42116804,118520.0,118510.0,0.38364935]
[1753032887927,1.0981618,118520.0,118510.0,0.97228935]
[1753032888124,1.42116804,118520.0,118510.0,0.97228935]
[1753032888529,1.42116804,118520.0,118510.0,0.941909]
[1753032888728,1.41206064,118520.0,118510.0,0.941909]
[1753032888927,1.25055752,118520.0,118510.0,1.1105976]
[1753032889225,0.88975752,118520.0,118510.0,1.10341212]
[1753032889631,0.88975752,118520.0,118510.0,1.63290072]
[1753032889927,0.88975752,118520.0,118510.0,1.46421212]
[1753032890128,0.88975752,118520.0,118510.0,1.302709]
[1753032890422,0.88975752,118520.0,118510.0,1.46421212]
[1753032890628,0.88975752,118520.0,118510.0,0.941909]
[1753032890827,0.88975752,118520.0,118510.0,1.10341212]
[1753032891227,1.05126064,118520.0,118510.0,0.941909]
[1753032891428,0.88975752,118520.0,118510.0,1.10341212]
[1753032891621,0.88975752,118520.0,118510.0,1.63290072]
[1753032892025,0.7282544,118520.0,118510.0,1.27210072]
[1753032892227,0.88975752,118520.0,118510.0,1.4713976]
[1753032892426,0.88975752,118520.0,118510.0,1.63290072]
[1753032893427,0.88975752,118520.0,118510.0,1.4713976]
[1753032893821,0.88975752,118520.0,118510.0,1.10341212]
[1753032894629,1.05126064,118520.0,118510.0,1.10341212]
[1753032895228,1.05126064,118520.0,118510.0,0.353269]
[1753032895430,1.41206064,118520.0,118510.0,0.353269]
[1753032895729,1.41206064,118520.0,118510.0,0.741909]
[1753032895730,1.58081264,118520.0,118510.0,0.741909]
[1753032896026,1.58081264,118520.0,118510.0,0.601909]
[1753032896631,2.16945264,118520.0,118510.0,0.601909]
[1753032897122,2.06193364,118520.0,118510.0,0.013269]
[1753032900723,2.27742088,118520.0,118510.0,0.013269]
[1753032901124,2.06193364,118520.0,118510.0,0.013269]
[1753032901829,2.27742088,118520.0,118510.0,0.013269]
[1753032902529,2.27742088,118520.0,118510.0,0.011269]
[1753032902730,2.06193364,118520.0,118510.0,0.011269]
[1753032903236,1.8464464,118520.0,118510.0,0.011269]
[1753032903426,2.06193364,118520.0,118510.0,0.011269]
[1753032905729,1.89318164,118520.0,118510.0,0.011269]
[1753032908831,1.53238164,118520.0,118510.0,0.011269]
[1753032909036,2.25398164,118520.0,118510.0,0.011269]
[1753032909627,1.89318164,118520.0,118510.0,0.011269]
[1753032914338,2.10866888,118520.0,118510.0,0.011269]
[1753032914534,2.10866888,118520.0,118490.0,0.38354652]
[1753032914735,0.68036064,118500.0,118490.0,1.34218652]
[1753032914935,0.94435064,118500.0,118490.0,1.34218652]
[1753032915137,0.94435064,118500.0,118490.0,0.98138652]
[1753032915429,0.94435064,118500.0,118490.0,0.95864]
[1753032915837,0.94435064,118500.0,118490.0,0.95964]
[1753032916029,0.7288634,118500.0,118490.0,0.96064]
[1753032916439,0.94435064,118500.0,118490.0,0.95964]
[1753032916742,0.94535064,118500.0,118490.0,0.9636]
[1753032917333,0.94535064,118500.0,118490.0,0.9626]
[1753032917533,0.94535064,118500.0,118490.0,0.9656]
[1753032917729,0.94735064,118500.0,118490.0,0.583269]
[1753032917942,0.94735064,118500.0,118490.0,1.171869]
[1753032918144,0.94735064,118500.0,118490.0,1.168869]
[1753032918438,0.94835064,118500.0,118490.0,1.168869]
[1753032919940,1.30915064,118500.0,118490.0,0.210269]
[1753032923145,1.41697118,118500.0,118490.0,0.210269]
[1753032925744,1.0936634,118500.0,118490.0,0.210269]
[1753032925944,1.41697118,118500.0,118490.0,0.210269]
[1753032927349,2.00549118,118500.0,118490.0,0.210269]
[1753032928344,0.4747876,118490.0,118480.0,0.62856451]
[1753032928544,1.42784911,118490.0,118480.0,0.61128014]
[1753032928744,1.26619522,118490.0,118480.0,0.02276014]
[1753032929046,1.42784911,118490.0,118480.0,0.02276014]
[1753032929844,0.4748018,118480.0,118470.0,0.64166049]
[1753032930043,1.04810958,118480.0,118470.0,0.80166049]
[1753032930249,1.04810958,118480.0,118470.0,0.77128014]
[1753032930846,1.04810958,118480.0,118470.0,0.80394014]
[1753032931047,1.04910958,118480.0,118470.0,0.80394014]
[1753032931249,0.94139134,118480.0,118470.0,0.80494014]
[1753032931444,0.94139134,118480.0,118470.0,1.01420913]
[1753032931850,1.30219134,118480.0,118470.0,1.01420913]
[1753032932351,1.30219134,118480.0,118470.0,0.99144899]
[1753032932552,1.31120975,118480.0,118470.0,0.99144899]
[1753032932852,1.31120975,118480.0,118470.0,1.01420913]
[1753032934354,1.31120975,118480.0,118470.0,0.99144899]
[1753032938054,1.31120975,118480.0,118470.0,0.95878899]
[1753032939960,1.89968975,118480.0,118470.0,0.95878899]
[1753032940566,1.89968975,118480.0,118470.0,0.37026899]
[1753032940862,1.68410021,118480.0,118470.0,0.37026899]
[1753032941062,1.53888975,118480.0,118470.0,0.37026899]
[1753032941953,1.89968975,118480.0,118470.0,0.21026899]
[1753032948663,1.89960975,118480.0,118470.0,0.21026899]
[1753032949868,1.31120975,118480.0,118470.0,0.21026899]
[1753032950065,1.53880975,118480.0,118470.0,0.21026899]
[1753032951066,1.89956975,118480.0,118470.0,0.21026899]
[1753032952864,1.89956975,118480.0,118470.0,0.10584629]
[1753032953270,2.00741341,118480.0,118470.0,0.10584629]
[1753032955370,2.00741341,118480.0,118470.0,0.10384629]
[1753032961471,2.00741341,118480.0,118470.0,0.12659725]
[1753032961672,1.68398021,118480.0,118470.0,0.12659725]
[1753032961880,2.00741341,118480.0,118470.0,0.12659725]
[1753032962767,2.00741341,118480.0,118470.0,0.15970725]
[1753032963279,1.64661341,118480.0,118470.0,0.15970725]
[1753032963576,2.00741341,118480.0,118470.0,0.15970725]
[1753032964475,1.32318021,118480.0,118470.0,0.15970725]
[1753032964780,1.64661341,118480.0,118470.0,0.15970725]
[1753032965078,1.64661341,118480.0,118470.0,0.24945725]
[1753032965277,0.7258018,118480.0,118470.0,1.35288995]
[1753032965579,0.8875184,118480.0,118470.0,1.33013899]
[1753032965982,0.8875184,118480.0,118470.0,1.3529273]
[1753032966279,0.7258018,118480.0,118470.0,1.3529273]
[1753032966479,0.8875184,118480.0,118470.0,1.3529273]
[1753032968082,0.8875184,118480.0,118470.0,1.35292781]
[1753032968272,0.7258018,118480.0,118470.0,1.35292781]
[1753032968478,0.8875184,118480.0,118470.0,1.35292781]
[1753032968678,0.8875184,118480.0,118470.0,1.36052341]
[1753032969480,0.8875184,118480.0,118470.0,1.19177731]
[1753032969682,0.8875184,118480.0,118470.0,1.21456666]
[1753032970273,0.7258018,118480.0,118470.0,1.38331276]
[1753032970580,0.8875184,118480.0,118470.0,1.38331276]
[1753032970990,0.8875184,118480.0,118470.0,1.21456666]
[1753032971882,0.8875184,118480.0,118470.0,1.18418224]
[1753032972285,0.8875184,118480.0,118470.0,1.21456666]
[1753032972684,0.8875184,118480.0,118470.0,1.05285006]
[1753032972984,0.8875184,118480.0,118470.0,1.21456666]
[1753032973477,0.8875184,118480.0,118470.0,1.18418224]
[1753032974378,0.8875184,118480.0,118470.0,1.05285006]
[1753032974583,1.049235,118480.0,118470.0,0.86812006]
[1753032975985,0.7258018,118480.0,118470.0,0.86812006]
[1753032976282,1.049235,118480.0,118470.0,1.03035006]
[1753032976985,1.049235,118480.0,118470.0,1.19206666]
[1753032977386,1.049235,118480.0,118470.0,0.57344224]
[1753032977582,1.049235,118480.0,118470.0,1.16156224]
[1753032977783,1.049235,118480.0,118470.0,0.99984564]
[1753032977984,1.049235,118480.0,118470.0,0.41172564]
[1753032978183,1.049235,118480.0,118470.0,0.99984564]
[1753032978386,1.049235,118480.0,118470.0,1.16156224]
[1753032978584,1.049235,118480.0,118470.0,0.55065289]
[1753032978785,1.049235,118480.0,118470.0,1.13877289]
[1753032978985,1.049235,118480.0,118470.0,0.55065289]
[1753032979187,1.049235,118480.0,118470.0,1.13877289]
[1753032979390,1.049235,118480.0,118470.0,0.55065289]
[1753032979688,1.049235,118480.0,118470.0,1.13877289]
[1753032980288,0.7258018,118480.0,118470.0,1.13877289]
[1753032980485,1.049235,118480.0,118470.0,1.13877289]
[1753032980890,1.049235,118480.0,118470.0,1.13873289]
[1753032983494,0.7258018,118480.0,118470.0,1.13873289]
[1753032983695,1.049235,118480.0,118470.0,1.13873289]
[1753032983892,1.049235,118480.0,118470.0,0.55065289]
[1753032984197,0.7258018,118480.0,118470.0,1.13869289]
[1753032984390,1.049235,118480.0,118470.0,1.13869289]
[1753032986495,1.049235,118480.0,118470.0,0.97697629]
[1753032988206,0.7258018,118480.0,118470.0,0.97697629]
[1753032988698,1.049235,118480.0,118470.0,0.99976564]
[1753032989002,0.7258018,118480.0,118470.0,1.16148224]
[1753032989199,1.410035,118480.0,118470.0,1.16148224]
[1753032989404,1.049235,118480.0,118470.0,1.16148224]
[1753032989706,1.410035,118480.0,118470.0,1.16148224]
[1753032989906,1.049235,118480.0,118470.0,1.16148224]
[1753032990109,1.410035,118480.0,118470.0,0.83753564]
[1753032990308,1.410035,118480.0,118470.0,0.83749564]
[1753032990508,1.049235,118480.0,118470.0,0.83749564]
[1753032991403,1.410035,118480.0,118470.0,0.83749564]
[1753032993007,1.0866018,118480.0,118470.0,0.83749564]
[1753032993208,1.049235,118480.0,118470.0,0.83749564]
[1753032994306,1.410035,118480.0,118470.0,0.83749564]
[1753032995611,1.410035,118480.0,118470.0,0.71455564]
[1753032998311,1.410035,118480.0,118470.0,0.12663564]
[1753032998512,1.410035,118480.0,118470.0,0.71455564]
[1753033001514,1.410035,118480.0,118470.0,0.69176629]
[1753033001811,1.410035,118480.0,118470.0,0.10384629]
[1753033002805,0.4605961,118470.0,118460.0,0.02278935]
[1753033003013,1.45677789,118470.0,118460.0,0.02278935]
[1753033003207,2.04465789,118470.0,118460.0,0.02278935]
[1753033004107,0.4834304,118460.0,118450.0,0.03038442]
[1753033004412,1.4376636,118460.0,118450.0,0.03038442]
[1753033005312,0.4834446,118450.0,118440.0,0.97746105]
[1753033005512,0.8951612,118450.0,118440.0,0.93188442]
[1753033005911,0.8951612,118450.0,118440.0,0.90932442]
[1753033006406,1.2559612,118450.0,118440.0,0.15708442]
[1753033006606,1.27467727,118450.0,118440.0,0.61822442]
[1753033006812,1.28423391,118450.0,118440.0,0.62222442]
[1753033007314,1.28423391,118450.0,118440.0,0.59184]
[1753033007613,2.03379051,118450.0,118440.0,0.008]
[1753033007912,1.87307391,118450.0,118440.0,0.005]
[1753033008113,2.03479051,118450.0,118440.0,0.005]
[1753033008413,1.87307391,118450.0,118440.0,0.001]
[1753033008613,1.87307391,118450.0,118440.0,0.03138442]
[1753033009512,1.28523391,118450.0,118440.0,0.03138442]
[1753033010513,1.28523391,118450.0,118440.0,0.001]
[1753033010715,1.44695051,118450.0,118440.0,0.001]
[1753033011515,2.03479051,118450.0,118440.0,0.001]
[1753033014815,1.71135731,118450.0,118440.0,0.001]
[1753033015016,2.03479051,118450.0,118440.0,0.001]
[1753033016718,2.03479051,118450.0,118440.0,1e-07]
[1753033016916,0.4818831,118430.0,118420.0,0.03038442]
[1753033017116,0.2899673,118420.0,118410.0,0.07596105]
[1753033017418,1.0753305,118420.0,118410.0,0.18505105]
[1753033017619,1.0753305,118420.0,118410.0,0.19741105]
[1753033018008,1.0753305,118420.0,118410.0,0.15183442]
[1753033018419,1.08420656,118420.0,118410.0,0.12145]
[1753033019323,1.08520656,118420.0,118410.0,0.12445]
[1753033019625,0.97756869,118420.0,118410.0,0.12445]
[1753033019918,0.97756869,118420.0,118410.0,0.12745]
[1753033020319,0.7528973,118420.0,118410.0,0.12745]
[1753033020528,0.7528973,118420.0,118410.0,0.67711]
[1753033020718,0.7528973,118420.0,118410.0,0.89290533]
[1753033022820,0.6083173,118420.0,118410.0,1.42173693]
[1753033023021,0.6083173,118420.0,118410.0,1.06173693]
[1753033023524,0.6083173,118420.0,118410.0,1.09212135]
[1753033023824,0.6317473,118420.0,118410.0,0.87632602]
[1753033024120,0.6317473,118420.0,118410.0,0.92328975]
[1753033024426,0.6627973,118420.0,118410.0,0.92328975]
[1753033024727,0.7415973,118420.0,118410.0,0.92328975]
[1753033025725,0.7415973,118420.0,118410.0,1.09212135]
[1753033026824,0.7415973,118420.0,118410.0,1.06173693]
[1753033027720,0.7415973,118420.0,118410.0,0.8459416]
[1753033027924,0.7415973,118420.0,118410.0,1.06173693]
[1753033028826,0.7415973,118420.0,118410.0,0.8459416]
[1753033029024,0.7415973,118420.0,118410.0,1.06173693]
[1753033029432,0.7528973,118420.0,118410.0,1.06173693]
[1753033032531,0.7528973,118420.0,118410.0,0.8459416]
[1753033032722,0.7528973,118420.0,118410.0,1.06173693]
[1753033035124,0.7528973,118420.0,118410.0,0.8459416]
[1753033035326,0.7528973,118420.0,118410.0,1.06173693]
[1753033038329,0.7528973,118420.0,118410.0,1.40173693]
[1753033038530,0.7528973,118420.0,118410.0,1.10731356]
[1753033038723,0.7528973,118420.0,118410.0,1.44731356]
[1753033038922,0.7528973,118420.0,118410.0,1.48731356]
[1753033039120,0.7528973,118420.0,118410.0,1.10731356]
[1753033039933,0.7528973,118420.0,118410.0,1.45731356]
[1753033040129,0.7528973,118420.0,118410.0,1.24151823]
[1753033040328,0.7528973,118420.0,118410.0,1.45731356]
[1753033040729,0.7528973,118420.0,118410.0,0.89151823]
[1753033041029,0.4398173,118420.0,118410.0,1.71891356]
[1753033041225,0.4398173,118420.0,118410.0,1.88780956]
[1753033041429,0.4398173,118420.0,118410.0,1.84223293]
[1753033041629,0.4398173,118420.0,118410.0,1.90300177]
[1753033042735,0.4398173,118420.0,118410.0,1.41410577]
[1753033042936,0.4398173,118420.0,118410.0,1.78410577]
[1753033043138,0.4398173,118420.0,118410.0,1.19831044]
[1753033043436,0.6083173,118420.0,118410.0,1.41410577]
[1753033045336,0.6326073,118420.0,118410.0,1.41410577]
[1753033046237,0.6646873,118420.0,118410.0,2.00182577]
[1753033046438,0.7549973,118420.0,118410.0,1.41210577]
[1753033046640,0.7549973,118420.0,118410.0,1.99982577]
[1753033047033,0.7549973,118420.0,118410.0,1.70822577]
[1753033047234,0.7549973,118420.0,118410.0,1.12050577]
[1753033047435,0.7549973,118420.0,118410.0,1.30357044]
[1753033047636,0.7549973,118420.0,118410.0,1.2428016]
[1753033047839,0.7549973,118420.0,118410.0,1.45859693]
[1753033048636,0.7549973,118420.0,118410.0,1.58265693]
[1753033048943,0.7549973,118420.0,118410.0,1.62953693]
[1753033049136,0.7549973,118420.0,118410.0,1.65353693]
[1753033049437,0.7549973,118420.0,118410.0,0.83770975]
[1753033049642,0.7549973,118420.0,118410.0,1.69712975]
[1753033051034,0.58618,118420.0,118410.0,2.03712975]
[1753033051241,0.50738,118420.0,118410.0,1.69712975]
[1753033051441,0.32039,118420.0,118410.0,1.99152693]
[1753033051642,0.271,118420.0,118410.0,1.99152693]
[1753033051944,0.4861773,118420.0,118410.0,1.65152693]
[1753033052140,0.6271273,118420.0,118410.0,1.65152693]
[1753033052444,0.7520673,118420.0,118410.0,1.6971274]
[1753033053046,0.7520673,118420.0,118410.0,1.6970874]
[1753033053247,0.7520673,118420.0,118410.0,1.48129207]
[1753033053446,0.7520673,118420.0,118410.0,1.6970874]
[1753033053646,0.7520673,118420.0,118410.0,1.48129207]
[1753033053847,0.7520673,118420.0,118410.0,1.6970874]
[1753033055146,0.7520673,118420.0,118410.0,1.48129207]
[1753033055346,0.7520673,118420.0,118410.0,1.6970874]
[1753033056744,0.7520673,118420.0,118410.0,1.1094074]
[1753033056945,0.7520673,118420.0,118410.0,1.65148693]
[1753033057345,0.7520673,118420.0,118410.0,1.4356916]
[1753033057545,0.7520673,118420.0,118410.0,1.65148693]
[1753033057745,0.7520673,118420.0,118410.0,1.71225577]
[1753033058452,0.7520673,118420.0,118410.0,2.09225577]
[1753033059245,0.7520673,118420.0,118410.0,1.71225577]
[1753033059853,0.7520673,118420.0,118410.0,1.65148693]
[1753033060253,0.7520673,118420.0,118410.0,1.4356916]
[1753033060453,0.7520673,118420.0,118410.0,1.65148693]
[1753033060653,0.7520673,118420.0,118410.0,1.71225577]
[1753033061254,0.7520673,118420.0,118410.0,1.65148693]
[1753033061456,0.7520673,118420.0,118410.0,1.71225577]
[1753033061657,0.7520673,118420.0,118410.0,1.65148693]
[1753033066758,0.7520673,118420.0,118410.0,1.96148693]
[1753033066961,0.7520673,118420.0,118410.0,1.65148693]
[1753033067154,0.7520673,118420.0,118410.0,2.01148693]
[1753033068653,0.7520673,118420.0,118410.0,2.05709281]
[1753033069059,0.7520673,118420.0,118410.0,1.69709281]
[1753033069562,0.7520673,118420.0,118410.0,1.48129748]
[1753033069860,0.7520673,118420.0,118410.0,1.69709281]
[1753033071954,0.7520673,118420.0,118410.0,1.72749913]
[1753033072162,0.7520673,118420.0,118410.0,1.69709281]
[1753033072662,0.7520673,118420.0,118410.0,1.72749919]
[1753033074063,0.7520673,118420.0,118410.0,1.65148693]
[1753033075966,0.7520673,118420.0,118410.0,1.4355716]
[1753033076173,0.7520673,118420.0,118410.0,1.4115716]
[1753033076372,0.7520673,118420.0,118410.0,0.8240116]
[1753033076573,0.7520673,118420.0,118410.0,1.4115716]
[1753033077670,0.7520673,118420.0,118410.0,1.4115316]
[1753033078075,0.7520673,118420.0,118410.0,0.8240116]
[1753033078269,0.7520673,118420.0,118410.0,1.4115316]
[1753033078670,0.7520673,118420.0,118410.0,0.8240116]
[1753033078870,0.7520673,118420.0,118410.0,1.4115316]
[1753033079374,0.7520673,118420.0,118410.0,0.8472116]
[1753033079568,0.7520673,118420.0,118410.0,1.4347316]
[1753033079768,0.7520673,118420.0,118410.0,1.49554489]
[1753033080574,0.7520673,118420.0,118410.0,1.71134022]
[1753033081172,0.7520673,118420.0,118410.0,2.09134022]
[1753033081678,0.7520673,118420.0,118410.0,1.49554489]
[1753033081880,0.7520673,118420.0,118410.0,1.71134022]
[1753033084281,0.7520673,118420.0,118410.0,1.49554489]
[1753033084477,0.7520673,118420.0,118410.0,1.71134022]
[1753033086180,0.7520673,118420.0,118410.0,1.49554489]
[1753033086380,0.7520673,118420.0,118410.0,1.71134022]
[1753033088676,0.7520673,118420.0,118410.0,1.65052693]
[1753033089376,0.7520673,118420.0,118410.0,2.0661367]
[1753033089377,0.6028373,118420.0,118410.0,2.0661367]
[1753033089582,0.271,118420.0,118410.0,2.0661367]
[1753033089784,0.4398173,118420.0,118410.0,2.0661367]
[1753033089986,0.4398173,118420.0,118410.0,2.02052693]
[1753033090180,0.4398173,118420.0,118410.0,2.06613476]
[1753033091477,0.271,118420.0,118410.0,2.06613476]
[1753033091990,0.4398173,118420.0,118410.0,2.06613476]
[1753033093585,0.271,118420.0,118410.0,2.06613476]
[1753033093785,0.271,118420.0,118410.0,2.08134022]
[1753033094286,0.271,118420.0,118410.0,2.37294022]
[1753033096287,0.271,118420.0,118410.0,2.31212693]
[1753033098182,0.271,118420.0,118410.0,2.37294022]
[1753033100190,0.271,118420.0,118410.0,2.08134022]
[1753033101792,0.271,118420.0,118410.0,1.86554489]
[1753033102189,0.271,118420.0,118410.0,2.08134022]
[1753033102489,0.271,118420.0,118410.0,2.02052693]
[1753033104494,0.4398172,118420.0,118410.0,2.02052693]
[1753033104994,0.271,118420.0,118410.0,2.08134022]
[1753033106094,0.271,118420.0,118410.0,2.37294022]
[1753033107294,0.271,118420.0,118410.0,2.48066893]
[1753033113498,0.01863423,118430.0,118420.0,0.4637372]
[1753033113698,0.08863423,118430.0,118420.0,2.29576466]
[1753033113903,0.25863423,118430.0,118420.0,2.13400264]
[1753033114106,0.42651423,118430.0,118420.0,2.13400264]
[1753033114605,0.42751423,118430.0,118420.0,2.13600264]
[1753033115200,0.61950723,118430.0,118420.0,2.13600264]
[1753033115594,0.61950723,118430.0,118420.0,1.8124786]
[1753033115801,0.61950723,118430.0,118420.0,2.13600264]
[1753033116196,0.61950723,118430.0,118420.0,2.13800264]
[1753033116501,0.61950723,118430.0,118420.0,1.80800264]
[1753033116803,0.61950723,118430.0,118420.0,1.82800264]
[1753033117000,0.61950723,118430.0,118420.0,1.80800264]
[1753033117703,0.61950723,118430.0,118420.0,2.18800264]
[1753033118002,0.61950723,118430.0,118420.0,2.09960264]
[1753033118504,0.61950723,118430.0,118420.0,2.11482453]
[1753033118803,0.65167723,118430.0,118420.0,1.18880623]
[1753033118999,0.74530723,118430.0,118420.0,2.09957027]
[1753033123300,0.90706925,118430.0,118420.0,1.77568105]
[1753033123504,0.90706925,118430.0,118420.0,1.18848105]
[1753033123706,0.90706925,118430.0,118420.0,1.77564105]
[1753033123902,0.90706925,118430.0,118420.0,1.48404105]
[1753033125605,0.74530723,118430.0,118420.0,1.48404105]
[1753033125802,0.90706925,118430.0,118420.0,1.48404105]
[1753033126002,0.90706925,118430.0,118420.0,1.64580307]
[1753033126203,0.74530723,118430.0,118420.0,1.64580307]
[1753033126504,0.74530723,118430.0,118420.0,1.83827307]
[1753033127905,0.726673,118430.0,118420.0,1.83827307]
[1753033128495,0.726673,118430.0,118420.0,2.21827307]
[1753033128705,0.726673,118430.0,118420.0,1.76229124]